[Event "Titled Tuesday Blitz May 2 Late 2023"]
[White "Kapp, Martin"]
[Black "Piesik, Piotr"]
[WhiteFideId "24651680"]
[BlackFideId "1136194"]
[WhiteElo "2177"]
[BlackElo "2299"]
[Result "0-1"]
[Round "04"]
[TimeControl "180+2"]
[Date "2023.05.02"]
[WhiteClock "0:00:02"]
[BlackClock "0:00:32"]

1. d4 {[%clk 0:03:00]}  c5 {[%clk 0:02:57]} 2. d5 {[%clk 0:03:00]}  e5 {[%clk 0:02:57]} 3. Nc3 {[%clk 0:03:00]}  d6 {[%clk 0:02:57]} 4. Nf3 {[%clk 0:03:00]}  Be7 {[%clk 0:02:57]} 5. Nd2 {[%clk 0:03:00]}  f5 {[%clk 0:02:54]} 6. e4 {[%clk 0:02:59]}  Nf6 {[%clk 0:02:54]} 7. Be2 {[%clk 0:02:56]}  O-O {[%clk 0:02:51]} 8. O-O {[%clk 0:02:56]}  a6 {[%clk 0:02:50]} 9. a4 {[%clk 0:02:55]}  fxe4 {[%clk 0:02:44]} 10. Ndxe4 {[%clk 0:02:53]}  Nxe4 {[%clk 0:02:44]} 11. Nxe4 {[%clk 0:02:52]}  Nd7 {[%clk 0:02:43]} 12. a5 {[%clk 0:02:51]}  h6 {[%clk 0:02:42]} 13. Ra4 {[%clk 0:02:50]}  Nf6 {[%clk 0:02:40]} 14. Nxf6+ {[%clk 0:02:44]}  Bxf6 {[%clk 0:02:40]} 15. Bg4 {[%clk 0:02:44]}  Bd7 {[%clk 0:02:37]} 16. Be6+ {[%clk 0:02:43]}  Bxe6 {[%clk 0:02:35]} 17. dxe6 {[%clk 0:02:43]}  Qe8 {[%clk 0:02:35]} 18. Rg4 {[%clk 0:02:41]}  Qxe6 {[%clk 0:02:34]} 19. Bxh6 {[%clk 0:02:40]}  d5 {[%clk 0:02:27]} 20. b3 {[%clk 0:02:00]}  Rad8 {[%clk 0:02:26]} 21. Rg3 {[%clk 0:01:49]}  e4 {[%clk 0:02:24]} 22. Qh5 {[%clk 0:01:42]}  Rf7 {[%clk 0:02:15]} 23. Rd1 {[%clk 0:01:33]}  Bd4 {[%clk 0:02:12]} 24. Be3 {[%clk 0:01:22]}  Bxe3 {[%clk 0:02:09]} 25. Rxe3 {[%clk 0:01:13]}  Rf5 {[%clk 0:02:07]} 26. Qh4 {[%clk 0:01:13]}  Re8 {[%clk 0:02:02]} 27. Rh3 {[%clk 0:01:13]}  Qg6 {[%clk 0:01:46]} 28. b4 {[%clk 0:00:56]}  cxb4 {[%clk 0:01:37]} 29. Rd4 {[%clk 0:00:55]}  Rg5 {[%clk 0:01:05]} 30. Rg3 {[%clk 0:00:25]}  Rxg3 {[%clk 0:01:04]} 31. Qxg3 {[%clk 0:00:25]}  Qf6 {[%clk 0:01:01]} 32. Qe3 {[%clk 0:00:16]}  Qc6 {[%clk 0:01:00]} 33. g3 {[%clk 0:00:14]}  Re7 {[%clk 0:00:56]} 34. Rxb4 {[%clk 0:00:13]}  Qxc2 {[%clk 0:00:56]} 35. Qd4 {[%clk 0:00:12]}  Qc1+ {[%clk 0:00:32]} 36. Kg2 {[%clk 0:00:11]}  Qc6 {[%clk 0:00:32]} 37. Rb6 {[%clk 0:00:09]}  Qd7 {[%clk 0:00:32]} 38. Rg6 {[%clk 0:00:04]}  Qf5 {[%clk 0:00:32]} 39. Rb6 {[%clk 0:00:02]}  Rf7 {[%clk 0:00:32]} 0-1


[Site "https://www.chess.com"]

[Event "Titled Tuesday Blitz May 2 Late 2023"]
[White "Harish, Neeraj"]
[Black "Guz, Ari"]
[WhiteFideId "30958130"]
[BlackFideId "2825759"]
[WhiteElo "1965"]
[BlackElo "2205"]
[Result "0-1"]
[Round "04"]
[TimeControl "180+2"]
[Date "2023.05.02"]
[WhiteClock "0:01:25"]
[BlackClock "0:02:14"]

1. e4 {[%clk 0:01:58]}  Nf6 {[%clk 0:02:43]} 2. e5 {[%clk 0:01:56]}  Nd5 {[%clk 0:02:43]} 3. c4 {[%clk 0:01:57]}  Nb6 {[%clk 0:02:43]} 4. d4 {[%clk 0:01:58]}  d6 {[%clk 0:02:44]} 5. exd6 {[%clk 0:01:59]}  cxd6 {[%clk 0:02:43]} 6. Nc3 {[%clk 0:01:58]}  g6 {[%clk 0:02:44]} 7. Be3 {[%clk 0:01:58]}  Bg7 {[%clk 0:02:44]} 8. Rc1 {[%clk 0:01:59]}  Nc6 {[%clk 0:02:45]} 9. b3 {[%clk 0:01:58]}  O-O {[%clk 0:02:44]} 10. Be2 {[%clk 0:01:57]}  e5 {[%clk 0:02:40]} 11. d5 {[%clk 0:01:56]}  Nd4 {[%clk 0:02:40]} 12. Nf3 {[%clk 0:01:48]}  Nxe2 {[%clk 0:02:39]} 13. Qxe2 {[%clk 0:01:48]}  Bg4 {[%clk 0:02:36]} 14. h3 {[%clk 0:01:46]}  Bxf3 {[%clk 0:02:36]} 15. Qxf3 {[%clk 0:01:47]}  f5 {[%clk 0:02:37]} 16. O-O {[%clk 0:01:44]}  a6 {[%clk 0:02:35]} 17. a4 {[%clk 0:01:33]}  Nd7 {[%clk 0:02:35]} 18. b4 {[%clk 0:01:29]}  e4 {[%clk 0:02:36]} 19. Qe2 {[%clk 0:01:28]}  Ne5 {[%clk 0:02:24]} 20. c5 {[%clk 0:01:25]}  Nd3 {[%clk 0:02:18]} 21. Rb1 {[%clk 0:01:25]}  Bxc3 {[%clk 0:02:14]} 0-1


[Site "https://www.chess.com"]

[Event "Titled Tuesday Blitz May 2 Late 2023"]
[White "Marcziter, Dmitrii"]
[Black "Hartikainen, Jarmo"]
[WhiteFideId "13900765"]
[BlackFideId "503134"]
[WhiteElo "2162"]
[BlackElo "2108"]
[Result "1-0"]
[Round "04"]
[TimeControl "180+2"]
[Date "2023.05.02"]
[WhiteClock "0:00:52"]
[BlackClock "0:00:29"]

1. d4 {[%clk 0:03:00]}  Nf6 {[%clk 0:02:58]} 2. Nf3 {[%clk 0:03:00]}  d5 {[%clk 0:02:56]} 3. c4 {[%clk 0:03:00]}  c5 {[%clk 0:02:56]} 4. cxd5 {[%clk 0:02:59]}  cxd4 {[%clk 0:02:55]} 5. Qxd4 {[%clk 0:02:55]}  Qxd5 {[%clk 0:02:54]} 6. Nc3 {[%clk 0:02:54]}  Qxd4 {[%clk 0:02:53]} 7. Nxd4 {[%clk 0:02:54]}  a6 {[%clk 0:02:52]} 8. e4 {[%clk 0:02:51]}  e5 {[%clk 0:02:45]} 9. Nf5 {[%clk 0:02:44]}  Bxf5 {[%clk 0:02:41]} 10. exf5 {[%clk 0:02:43]}  Nc6 {[%clk 0:02:39]} 11. Bg5 {[%clk 0:02:39]}  Nd4 {[%clk 0:02:28]} 12. Bd3 {[%clk 0:02:31]}  Bb4 {[%clk 0:02:26]} 13. O-O {[%clk 0:02:28]}  O-O {[%clk 0:02:22]} 14. Bxf6 {[%clk 0:02:27]}  gxf6 {[%clk 0:02:13]} 15. Nd5 {[%clk 0:02:27]}  Bd6 {[%clk 0:01:56]} 16. Nxf6+ {[%clk 0:02:12]}  Kg7 {[%clk 0:01:56]} 17. Nh5+ {[%clk 0:02:00]}  Kh6 {[%clk 0:01:54]} 18. Ng3 {[%clk 0:01:56]}  f6 {[%clk 0:01:37]} 19. Rac1 {[%clk 0:01:53]}  Rac8 {[%clk 0:01:33]} 20. Be4 {[%clk 0:01:52]}  b5 {[%clk 0:01:16]} 21. Bb7 {[%clk 0:01:50]}  Rxc1 {[%clk 0:01:14]} 22. Rxc1 {[%clk 0:01:49]}  a5 {[%clk 0:01:15]} 23. Kf1 {[%clk 0:01:40]}  Rd8 {[%clk 0:01:08]} 24. Be4 {[%clk 0:01:38]}  Kg5 {[%clk 0:01:00]} 25. f3 {[%clk 0:01:31]}  h5 {[%clk 0:00:55]} 26. Kf2 {[%clk 0:01:28]}  h4 {[%clk 0:00:54]} 27. Nf1 {[%clk 0:01:28]}  Nxf5 {[%clk 0:00:53]} 28. Bxf5 {[%clk 0:01:21]}  Kxf5 {[%clk 0:00:52]} 29. Ne3+ {[%clk 0:01:20]}  Ke6 {[%clk 0:00:49]} 30. Rc6 {[%clk 0:01:14]}  Kd7 {[%clk 0:00:45]} 31. Ra6 {[%clk 0:01:11]}  a4 {[%clk 0:00:42]} 32. Nd5 {[%clk 0:01:00]}  f5 {[%clk 0:00:32]} 33. Ke2 {[%clk 0:00:55]}  Rc8 {[%clk 0:00:29]} 34. Nb6+ {[%clk 0:00:52]} 1-0


[Site "https://www.chess.com"]

[Event "Titled Tuesday Blitz May 2 Late 2023"]
[White "Sailer, Mike"]
[Black "Gerbelli Neto, Eduardo"]
[WhiteFideId "2012901"]
[BlackFideId "2103281"]
[WhiteElo "2109"]
[BlackElo "2178"]
[Result "0-1"]
[Round "04"]
[TimeControl "180+2"]
[Date "2023.05.02"]
[WhiteClock "0:00:08"]
[BlackClock "0:00:18"]

1. d4 {[%clk 0:02:59]}  d5 {[%clk 0:02:59]} 2. Bg5 {[%clk 0:02:59]}  f6 {[%clk 0:02:57]} 3. Bh4 {[%clk 0:02:58]}  Nh6 {[%clk 0:02:57]} 4. f3 {[%clk 0:02:50]}  c6 {[%clk 0:02:48]} 5. Nc3 {[%clk 0:02:48]}  Qb6 {[%clk 0:02:28]} 6. Rb1 {[%clk 0:02:20]}  e5 {[%clk 0:02:25]} 7. e3 {[%clk 0:02:20]}  Nf5 {[%clk 0:02:14]} 8. Bf2 {[%clk 0:02:19]}  exd4 {[%clk 0:02:13]} 9. exd4 {[%clk 0:02:18]}  Bb4 {[%clk 0:02:10]} 10. Bd3 {[%clk 0:02:15]}  O-O {[%clk 0:02:03]} 11. Ne2 {[%clk 0:02:09]}  Nd6 {[%clk 0:01:50]} 12. O-O {[%clk 0:02:06]}  Bf5 {[%clk 0:01:45]} 13. a3 {[%clk 0:02:05]}  Bxc3 {[%clk 0:01:45]} 14. bxc3 {[%clk 0:01:53]}  Qc7 {[%clk 0:01:42]} 15. Bg3 {[%clk 0:01:53]}  Bxd3 {[%clk 0:01:40]} 16. cxd3 {[%clk 0:01:51]}  b6 {[%clk 0:01:38]} 17. c4 {[%clk 0:01:48]}  Qe7 {[%clk 0:01:32]} 18. Bxd6 {[%clk 0:01:17]}  Qxd6 {[%clk 0:01:31]} 19. Nc3 {[%clk 0:01:17]}  Qxa3 {[%clk 0:01:23]} 20. Qd2 {[%clk 0:01:11]}  Nd7 {[%clk 0:01:13]} 21. Ra1 {[%clk 0:01:05]}  Qd6 {[%clk 0:01:13]} 22. cxd5 {[%clk 0:00:58]}  cxd5 {[%clk 0:01:12]} 23. Nb5 {[%clk 0:00:58]}  Qb8 {[%clk 0:01:09]} 24. Qa2 {[%clk 0:00:58]}  Qb7 {[%clk 0:01:04]} 25. Rfe1 {[%clk 0:00:55]}  Rfd8 {[%clk 0:00:31]} 26. Re7 {[%clk 0:00:46]}  Qc6 {[%clk 0:00:31]} 27. Rae1 {[%clk 0:00:29]}  Qxb5 {[%clk 0:00:27]} 28. Qe2 {[%clk 0:00:21]}  Nf8 {[%clk 0:00:27]} 29. Qa2 {[%clk 0:00:09]}  Qxd3 {[%clk 0:00:19]} 30. Qxd5+ {[%clk 0:00:08]}  Rxd5 {[%clk 0:00:18]} 0-1


[Site "https://www.chess.com"]

[Event "Titled Tuesday Blitz May 2 Late 2023"]
[White "Dias, Joao Batista"]
[Black "Carrasco Miranda, Andres"]
[WhiteFideId "2108240"]
[BlackFideId "3405990"]
[WhiteElo "1907"]
[BlackElo "2183"]
[Result "0-1"]
[Round "04"]
[TimeControl "180+2"]
[Date "2023.05.02"]
[WhiteClock "0:00:05"]
[BlackClock "0:01:09"]

1. e4 {[%clk 0:01:18]}  e5 {[%clk 0:02:57]} 2. Nf3 {[%clk 0:01:16]}  Nc6 {[%clk 0:02:56]} 3. d4 {[%clk 0:01:16]}  exd4 {[%clk 0:02:57]} 4. Nxd4 {[%clk 0:01:16]}  Nf6 {[%clk 0:02:57]} 5. Nxc6 {[%clk 0:01:14]}  bxc6 {[%clk 0:02:58]} 6. Bd3 {[%clk 0:01:13]}  d5 {[%clk 0:02:56]} 7. exd5 {[%clk 0:01:11]}  Bd6 {[%clk 0:02:56]} 8. O-O {[%clk 0:01:11]}  O-O {[%clk 0:02:56]} 9. Nc3 {[%clk 0:01:09]}  cxd5 {[%clk 0:02:55]} 10. Bg5 {[%clk 0:01:08]}  c6 {[%clk 0:02:55]} 11. Qf3 {[%clk 0:01:03]}  Rb8 {[%clk 0:02:54]} 12. b3 {[%clk 0:01:02]}  Be6 {[%clk 0:02:50]} 13. Rad1 {[%clk 0:01:00]}  Be5 {[%clk 0:02:46]} 14. Na4 {[%clk 0:00:59]}  h6 {[%clk 0:02:45]} 15. Bxf6 {[%clk 0:00:54]}  Qxf6 {[%clk 0:02:43]} 16. Qxf6 {[%clk 0:00:53]}  Bxf6 {[%clk 0:02:44]} 17. Nc5 {[%clk 0:00:53]}  Bg4 {[%clk 0:02:41]} 18. f3 {[%clk 0:00:52]}  Bd4+ {[%clk 0:02:35]} 19. Kh1 {[%clk 0:00:52]}  Bxf3 {[%clk 0:02:35]} 20. Rxf3 {[%clk 0:00:51]}  Bxc5 {[%clk 0:02:36]} 21. g3 {[%clk 0:00:41]}  Rfe8 {[%clk 0:02:34]} 22. Kg2 {[%clk 0:00:39]}  g6 {[%clk 0:02:30]} 23. Rdf1 {[%clk 0:00:38]}  Rb7 {[%clk 0:02:27]} 24. Rf6 {[%clk 0:00:37]}  Rc7 {[%clk 0:02:19]} 25. h4 {[%clk 0:00:27]}  h5 {[%clk 0:02:18]} 26. R1f3 {[%clk 0:00:18]}  Re1 {[%clk 0:02:03]} 27. a4 {[%clk 0:00:17]}  Rg1+ {[%clk 0:02:02]} 28. Kh2 {[%clk 0:00:18]}  Re1 {[%clk 0:01:58]} 29. Kg2 {[%clk 0:00:17]}  Bd4 {[%clk 0:01:55]} 30. R6f4 {[%clk 0:00:17]}  c5 {[%clk 0:01:45]} 31. g4 {[%clk 0:00:15]}  Be5 {[%clk 0:01:41]} 32. gxh5 {[%clk 0:00:13]}  Bxf4 {[%clk 0:01:41]} 33. Rxf4 {[%clk 0:00:14]}  gxh5 {[%clk 0:01:28]} 34. Rf5 {[%clk 0:00:13]}  c4 {[%clk 0:01:26]} 35. bxc4 {[%clk 0:00:12]}  dxc4 {[%clk 0:01:27]} 36. Bf1 {[%clk 0:00:10]}  Rd7 {[%clk 0:01:24]} 37. Rg5+ {[%clk 0:00:10]}  Kf8 {[%clk 0:01:24]} 38. Bxc4 {[%clk 0:00:09]}  Rd2+ {[%clk 0:01:22]} 39. Kf3 {[%clk 0:00:07]}  Rxc2 {[%clk 0:01:22]} 40. Bb5 {[%clk 0:00:05]}  Rc3+ {[%clk 0:01:13]} 41. Kf2 {[%clk 0:00:04]}  Ra1 {[%clk 0:01:10]} 42. Rxh5 {[%clk 0:00:05]}  Ra2+ {[%clk 0:01:10]} 43. Ke1 {[%clk 0:00:05]}  Rc1# {[%clk 0:01:09]} 0-1


[Site "https://www.chess.com"]

[Event "Titled Tuesday Blitz May 2 Late 2023"]
[White "Vargas, Mauricio"]
[Black "Tyagi, Kushan"]
[WhiteFideId "4404572"]
[BlackFideId "2040069"]
[WhiteElo "1998"]
[BlackElo "2060"]
[Result "0-1"]
[Round "04"]
[TimeControl "180+2"]
[Date "2023.05.02"]
[WhiteClock "0:00:02"]
[BlackClock "0:01:00"]

1. e4 {[%clk 0:02:58]}  c5 {[%clk 0:02:39]} 2. Nc3 {[%clk 0:02:49]}  a6 {[%clk 0:02:33]} 3. Nd5 {[%clk 0:02:49]}  e6 {[%clk 0:02:33]} 4. Ne3 {[%clk 0:02:49]}  b5 {[%clk 0:02:33]} 5. d3 {[%clk 0:02:49]}  Bb7 {[%clk 0:02:33]} 6. f4 {[%clk 0:02:48]}  Nc6 {[%clk 0:02:32]} 7. Nf3 {[%clk 0:02:48]}  d5 {[%clk 0:02:27]} 8. e5 {[%clk 0:02:47]}  Nge7 {[%clk 0:02:26]} 9. g4 {[%clk 0:02:44]}  h5 {[%clk 0:02:25]} 10. g5 {[%clk 0:02:42]}  g6 {[%clk 0:02:24]} 11. h4 {[%clk 0:02:38]}  d4 {[%clk 0:02:12]} 12. Ng2 {[%clk 0:02:34]}  Nf5 {[%clk 0:02:12]} 13. Kf2 {[%clk 0:02:29]}  Nce7 {[%clk 0:02:11]} 14. Bd2 {[%clk 0:02:21]}  Rc8 {[%clk 0:02:06]} 15. Rh3 {[%clk 0:02:17]}  Nd5 {[%clk 0:02:04]} 16. Qe1 {[%clk 0:02:05]}  Be7 {[%clk 0:02:01]} 17. Kg1 {[%clk 0:02:00]}  O-O {[%clk 0:01:59]} 18. Kh2 {[%clk 0:01:58]}  c4 {[%clk 0:01:57]} 19. Be2 {[%clk 0:01:52]}  c3 {[%clk 0:01:56]} 20. bxc3 {[%clk 0:01:50]}  Nxc3 {[%clk 0:01:54]} 21. Bxc3 {[%clk 0:01:37]}  Rxc3 {[%clk 0:01:51]} 22. Qd1 {[%clk 0:01:28]}  Qc7 {[%clk 0:01:45]} 23. Rc1 {[%clk 0:00:58]}  Qc6 {[%clk 0:01:41]} 24. Bf1 {[%clk 0:00:21]}  Ba3 {[%clk 0:01:31]} 25. Rb1 {[%clk 0:00:02]}  Rxc2 {[%clk 0:01:30]} 26. Nd2 {[%clk 0:00:02]}  Rc8 {[%clk 0:01:09]} 27. Ne4 {[%clk 0:00:02]}  Be7 {[%clk 0:01:02]} 28. Nf6+ {[%clk 0:00:03]}  Bxf6 {[%clk 0:01:02]} 29. gxf6 {[%clk 0:00:02]}  Rxg2+ {[%clk 0:01:00]} 0-1


[Site "https://www.chess.com"]

[Event "Titled Tuesday Blitz May 2 Late 2023"]
[White "Ismayilova, Khanim"]
[Black "Wang, Alexander J"]
[WhiteFideId "13429019"]
[BlackFideId "30955270"]
[WhiteElo "1633"]
[BlackElo "1815"]
[Result "1/2-1/2"]
[Round "04"]
[TimeControl "180+2"]
[Date "2023.05.02"]
[WhiteClock "0:00:41"]
[BlackClock "0:00:25"]

1. c4 {[%clk 0:03:00]}  e6 {[%clk 0:01:26]} 2. Nc3 {[%clk 0:03:00]}  d5 {[%clk 0:01:26]} 3. e3 {[%clk 0:02:59]}  c5 {[%clk 0:01:25]} 4. Nf3 {[%clk 0:02:59]}  Nc6 {[%clk 0:01:26]} 5. d4 {[%clk 0:03:00]}  Nf6 {[%clk 0:01:26]} 6. a3 {[%clk 0:03:00]}  dxc4 {[%clk 0:01:25]} 7. Bxc4 {[%clk 0:02:59]}  a6 {[%clk 0:01:26]} 8. O-O {[%clk 0:02:58]}  b5 {[%clk 0:01:25]} 9. Be2 {[%clk 0:02:57]}  cxd4 {[%clk 0:01:26]} 10. exd4 {[%clk 0:02:57]}  Bb7 {[%clk 0:01:26]} 11. h3 {[%clk 0:02:51]}  Be7 {[%clk 0:01:24]} 12. Be3 {[%clk 0:02:51]}  O-O {[%clk 0:01:24]} 13. Rc1 {[%clk 0:02:51]}  Nd5 {[%clk 0:01:24]} 14. Nxd5 {[%clk 0:02:49]}  exd5 {[%clk 0:01:25]} 15. Bd3 {[%clk 0:02:46]}  Rc8 {[%clk 0:01:23]} 16. Bf5 {[%clk 0:02:33]}  Ra8 {[%clk 0:01:21]} 17. Rc3 {[%clk 0:02:12]}  g6 {[%clk 0:01:19]} 18. Bd3 {[%clk 0:02:11]}  Rc8 {[%clk 0:01:19]} 19. Qd2 {[%clk 0:02:05]}  Na5 {[%clk 0:01:16]} 20. Rxc8 {[%clk 0:01:55]}  Bxc8 {[%clk 0:01:14]} 21. Bh6 {[%clk 0:01:46]}  Re8 {[%clk 0:01:09]} 22. Ne5 {[%clk 0:01:46]}  Nc4 {[%clk 0:01:06]} 23. Bxc4 {[%clk 0:01:22]}  dxc4 {[%clk 0:00:50]} 24. Nc6 {[%clk 0:01:21]}  Qd5 {[%clk 0:00:46]} 25. Nxe7+ {[%clk 0:01:20]}  Rxe7 {[%clk 0:00:47]} 26. Re1 {[%clk 0:01:12]}  Rxe1+ {[%clk 0:00:46]} 27. Qxe1 {[%clk 0:01:13]}  Be6 {[%clk 0:00:46]} 28. Qe5 {[%clk 0:01:05]}  Qxe5 {[%clk 0:00:45]} 29. dxe5 {[%clk 0:01:06]}  Bd5 {[%clk 0:00:41]} 30. Kf1 {[%clk 0:01:04]}  Be4 {[%clk 0:00:40]} 31. g3 {[%clk 0:01:03]}  a5 {[%clk 0:00:37]} 32. Ke1 {[%clk 0:01:03]}  b4 {[%clk 0:00:36]} 33. axb4 {[%clk 0:00:52]}  axb4 {[%clk 0:00:37]} 34. Kd2 {[%clk 0:00:53]}  Bf5 {[%clk 0:00:36]} 35. Kc1 {[%clk 0:00:43]}  Bxh3 {[%clk 0:00:32]} 36. Bd2 {[%clk 0:00:38]}  b3 {[%clk 0:00:31]} 37. Bh6 {[%clk 0:00:38]}  Bf1 {[%clk 0:00:30]} 38. Kd2 {[%clk 0:00:38]}  Bd3 {[%clk 0:00:30]} 39. Kc3 {[%clk 0:00:38]}  Be2 {[%clk 0:00:26]} 40. Kd2 {[%clk 0:00:39]}  Bd3 {[%clk 0:00:26]} 41. Kc3 {[%clk 0:00:39]}  Bf1 {[%clk 0:00:26]} 42. Kd2 {[%clk 0:00:39]}  Bg2 {[%clk 0:00:25]} 43. Kc3 {[%clk 0:00:40]}  Bf1 {[%clk 0:00:25]} 44. Kd2 {[%clk 0:00:41]} 1/2-1/2


[Site "https://www.chess.com"]

[Event "Titled Tuesday Blitz May 2 Late 2023"]
[White "Gabdushev, Ruslan"]
[Black "Munoz Misselis, Nelson Carlos"]
[WhiteFideId "4137833"]
[BlackFideId "6601790"]
[WhiteElo "2233"]
[BlackElo "1749"]
[Result "1-0"]
[Round "04"]
[TimeControl "180+2"]
[Date "2023.05.02"]
[WhiteClock "0:01:29"]
[BlackClock "0:00:52"]

1. b3 {[%clk 0:02:59]}  c6 {[%clk 0:02:59]} 2. Bb2 {[%clk 0:02:59]}  Nf6 {[%clk 0:02:59]} 3. e3 {[%clk 0:02:59]}  d6 {[%clk 0:02:55]} 4. f4 {[%clk 0:02:58]}  e6 {[%clk 0:02:54]} 5. Nf3 {[%clk 0:02:57]}  Be7 {[%clk 0:02:54]} 6. Be2 {[%clk 0:02:57]}  O-O {[%clk 0:02:54]} 7. O-O {[%clk 0:02:57]}  Nbd7 {[%clk 0:02:52]} 8. Qe1 {[%clk 0:02:57]}  d5 {[%clk 0:02:52]} 9. Qg3 {[%clk 0:02:56]}  Kh8 {[%clk 0:02:50]} 10. d3 {[%clk 0:02:54]}  a5 {[%clk 0:02:50]} 11. a3 {[%clk 0:02:52]}  b5 {[%clk 0:02:49]} 12. Nbd2 {[%clk 0:02:51]}  a4 {[%clk 0:02:48]} 13. b4 {[%clk 0:02:50]}  Bd6 {[%clk 0:02:41]} 14. Ne5 {[%clk 0:02:47]}  Bb7 {[%clk 0:02:39]} 15. Ndf3 {[%clk 0:02:42]}  Bxe5 {[%clk 0:02:34]} 16. fxe5 {[%clk 0:02:36]}  Ng8 {[%clk 0:02:25]} 17. Ng5 {[%clk 0:02:31]}  Qe7 {[%clk 0:02:14]} 18. Bh5 {[%clk 0:02:29]}  g6 {[%clk 0:02:10]} 19. Be2 {[%clk 0:02:25]}  h6 {[%clk 0:01:41]} 20. Nf3 {[%clk 0:02:17]}  Kh7 {[%clk 0:01:31]} 21. Rab1 {[%clk 0:01:54]}  f5 {[%clk 0:01:07]} 22. exf6 {[%clk 0:01:53]}  Ndxf6 {[%clk 0:01:06]} 23. Ne5 {[%clk 0:01:50]}  Qg7 {[%clk 0:00:58]} 24. Rf2 {[%clk 0:01:42]}  Nh5 {[%clk 0:00:56]} 25. Bxh5 {[%clk 0:01:39]}  Rxf2 {[%clk 0:00:54]} 26. Bxg6+ {[%clk 0:01:37]}  Kh8 {[%clk 0:00:52]} 27. Qxf2 {[%clk 0:01:29]} 1-0


[Site "https://www.chess.com"]

[Event "Titled Tuesday Blitz May 2 Late 2023"]
[White "Firouzja, Alireza"]
[Black "Henriquez Villagra, Cristobal"]
[WhiteFideId "12573981"]
[BlackFideId "3409350"]
[WhiteElo "2904"]
[BlackElo "2542"]
[Result "1/2-1/2"]
[Round "05"]
[TimeControl "180+2"]
[Date "2023.05.02"]
[WhiteClock "0:00:05"]
[BlackClock "0:00:11"]

1. d4 {[%clk 0:02:59]}  d5 {[%clk 0:02:56]} 2. Bg5 {[%clk 0:02:59]}  Nd7 {[%clk 0:02:51]} 3. e3 {[%clk 0:02:55]}  Ngf6 {[%clk 0:02:52]} 4. Nd2 {[%clk 0:02:49]}  c5 {[%clk 0:02:47]} 5. Ngf3 {[%clk 0:02:48]}  e6 {[%clk 0:02:44]} 6. c3 {[%clk 0:02:47]}  b6 {[%clk 0:02:42]} 7. Bd3 {[%clk 0:02:47]}  Bb7 {[%clk 0:02:43]} 8. O-O {[%clk 0:02:45]}  Be7 {[%clk 0:02:43]} 9. Qb1 {[%clk 0:02:45]}  h6 {[%clk 0:02:42]} 10. Bh4 {[%clk 0:02:44]}  O-O {[%clk 0:02:21]} 11. b4 {[%clk 0:02:37]}  cxb4 {[%clk 0:02:13]} 12. cxb4 {[%clk 0:02:36]}  Rc8 {[%clk 0:02:13]} 13. a3 {[%clk 0:02:28]}  Rc3 {[%clk 0:02:11]} 14. Rc1 {[%clk 0:02:12]}  Rxc1+ {[%clk 0:01:57]} 15. Qxc1 {[%clk 0:02:13]}  Qa8 {[%clk 0:01:57]} 16. Ne5 {[%clk 0:02:03]}  Rc8 {[%clk 0:01:49]} 17. Qb2 {[%clk 0:02:01]}  Kf8 {[%clk 0:01:34]} 18. f4 {[%clk 0:01:54]}  Rc7 {[%clk 0:01:13]} 19. Ndf3 {[%clk 0:01:49]}  Qc8 {[%clk 0:01:07]} 20. f5 {[%clk 0:01:49]}  Nxe5 {[%clk 0:01:00]} 21. dxe5 {[%clk 0:01:44]}  Ne4 {[%clk 0:00:59]} 22. f6 {[%clk 0:01:40]}  gxf6 {[%clk 0:00:57]} 23. exf6 {[%clk 0:01:23]}  Bd6 {[%clk 0:00:57]} 24. Rd1 {[%clk 0:01:23]}  Nc3 {[%clk 0:00:53]} 25. Rf1 {[%clk 0:01:23]}  e5 {[%clk 0:00:53]} 26. Bg3 {[%clk 0:01:20]}  Qe6 {[%clk 0:00:49]} 27. Nh4 {[%clk 0:01:20]}  e4 {[%clk 0:00:41]} 28. Bxd6+ {[%clk 0:01:12]}  Qxd6 {[%clk 0:00:42]} 29. Be2 {[%clk 0:01:13]}  Bc8 {[%clk 0:00:35]} 30. Kh1 {[%clk 0:00:46]}  d4 {[%clk 0:00:34]} 31. exd4 {[%clk 0:00:46]}  Qxd4 {[%clk 0:00:35]} 32. Qc1 {[%clk 0:00:43]}  e3 {[%clk 0:00:31]} 33. Nf3 {[%clk 0:00:16]}  Qxf6 {[%clk 0:00:31]} 34. Bd3 {[%clk 0:00:12]}  e2 {[%clk 0:00:28]} 35. Re1 {[%clk 0:00:10]}  Bb7 {[%clk 0:00:22]} 36. Bxe2 {[%clk 0:00:08]}  Re7 {[%clk 0:00:22]} 37. Bd3 {[%clk 0:00:05]}  Bxf3 {[%clk 0:00:21]} 38. Rxe7 {[%clk 0:00:05]}  Bxg2+ {[%clk 0:00:20]} 39. Kxg2 {[%clk 0:00:05]}  Kxe7 {[%clk 0:00:20]} 40. Qe3+ {[%clk 0:00:04]}  Kd6 {[%clk 0:00:21]} 41. Bc4 {[%clk 0:00:03]}  Qg5+ {[%clk 0:00:10]} 42. Qxg5 {[%clk 0:00:03]}  hxg5 {[%clk 0:00:10]} 43. Bxf7 {[%clk 0:00:03]}  Nb5 {[%clk 0:00:11]} 44. a4 {[%clk 0:00:04]}  Nc3 {[%clk 0:00:12]} 45. Bb3 {[%clk 0:00:04]}  Ke5 {[%clk 0:00:12]} 46. Kf3 {[%clk 0:00:04]}  Ne4 {[%clk 0:00:12]} 47. Kg4 {[%clk 0:00:04]}  Kf6 {[%clk 0:00:12]} 48. Bc2 {[%clk 0:00:04]}  Nc3 {[%clk 0:00:11]} 49. a5 {[%clk 0:00:04]}  Nd5 {[%clk 0:00:10]} 50. axb6 {[%clk 0:00:04]}  axb6 {[%clk 0:00:10]} 51. Bb3 {[%clk 0:00:03]}  Nxb4 {[%clk 0:00:11]} 52. h4 {[%clk 0:00:04]}  gxh4 {[%clk 0:00:10]} 53. Kxh4 {[%clk 0:00:04]}  Ke5 {[%clk 0:00:11]} 54. Kg3 {[%clk 0:00:05]}  Kd4 {[%clk 0:00:10]} 55. Kf2 {[%clk 0:00:06]}  Kc3 {[%clk 0:00:11]} 56. Ba4 {[%clk 0:00:06]}  Kd2 {[%clk 0:00:11]} 57. Kf3 {[%clk 0:00:06]}  Nd5 {[%clk 0:00:11]} 58. Be8 {[%clk 0:00:05]}  Nc3 {[%clk 0:00:11]} 59. Kf4 {[%clk 0:00:04]}  Kd3 {[%clk 0:00:11]} 60. Ke5 {[%clk 0:00:05]}  Kc4 {[%clk 0:00:11]} 61. Bf7+ {[%clk 0:00:05]}  Kc5 {[%clk 0:00:11]} 62. Be8 {[%clk 0:00:05]}  Nd5 {[%clk 0:00:11]} 63. Bd7 {[%clk 0:00:05]}  b5 {[%clk 0:00:11]} 64. Bxb5 {[%clk 0:00:05]} 1/2-1/2


[Site "https://www.chess.com"]